[Event "Serbian League 2024"]
[Site "Bajina Basta"]
[Date "2024.09.28"]
[Round "2.18"]
[White "Zivanovic, Bojan"]
[Black "Tadic, Branko"]
[Result "1-0"]
[ECO "A04"]
[WhiteElo "2161"]
[BlackElo "2424"]
[Annotator "ChessBase"]
[PlyCount "61"]
[EventDate "2024.09.26"]
[EventType "team-tourn"]
[EventCountry "SRB"]
[SourceTitle "playchess.com"]
[Source "ChessBase"]
[SourceQuality "1"]
[TimeControl "40/5400+30:1800+30"]

1. Nf3 {[%emt 0:00:08]} c5 {[%emt 0:08:12]} 2. g3 {[%emt 0:02:00]} Nc6 {[%emt 0:00:24]} 3. Bg2 {[%emt 0:01:09]} g6 {[%emt 0:03:52]} 4. O-O {[%emt 0:02:37]} Bg7 {[%emt 0:00:17]} 5. e4 {[%emt 0:13:14]} Nf6 {[%emt 0:00:10]} 6. Re1 {[%emt 0:03:39]} d5 {[%emt 0:05:37]} 7. exd5 {[%emt 0:03:44]} Nxd5 {[%emt 0:00:21]} 8. Nc3 {[%emt 0:00:42]} Nxc3 {[%emt 0:01:12]} 9. dxc3 {[%emt 0:04:50]} Qxd1 {[%emt 0:02:37]} 10. Rxd1 {[%emt 0:00:06]} Bd7 {[%emt 0:00:05]} 11. Be3 {[%emt 0:05:59]} b6 {[%emt 0:00:53]} 12. Ng5 {[%emt 0:09:00]} h6 {[%emt 0:26:05]} 13. Nxf7 {[%emt 0:10:41]} Rf8 {[%emt 0:00:48]} 14. Nxh6 {[%emt 0:00:18]} O-O-O {[%emt 0:00:23]} 15. h3 {[%emt 0:24:13]} Ne5 {[%emt 0:01:23]} 16. Ng4 {[%emt 0:00:53]} Nf3+ {[%emt 0:05:55]} 17. Bxf3 {[%emt 0:02:24]} Rxf3 {[%emt 0:00:03]} 18. Bf4 {[%emt 0:01:33]} Rf8 {[%emt 0:07:47]} 19. Be5 {[%emt 0:04:26]} Bf6 {[%emt 0:02:37]} 20. Bxf6 {[%emt 0:01:02]} exf6 {[%emt 0:00:29]} 21. Rd3 {[%emt 0:02:13]} Rf5 {[%emt 0:01:51]} 22. Re1 {[%emt 0:02:57]} Rh5 {[%emt 0:03:21]} 23. Rd6 {[%emt 0:01:03]} Rxh3 {[%emt 0:03:15]} 24. Nxf6 {[%emt 0:00:53]} Rfh8 {[%emt 0:05:21]} 25. Re7 {[%emt 0:00:22]} Bf5 {[%emt 0:01:43]} 26. Rxa7 {[%emt 0:00:41]} Rh1+ {[%emt 0:10:16]} 27. Kg2 {[%emt 0:00:01]} R8h2+ {[%emt 0:00:19]} 28. Kf3 {[%emt 0:00:05]} Rf1 {[%emt 0:00:06]} 29. Ng4 {[%emt 0:01:24]} Bxg4+ {[%emt 0:01:45]} 30. Kxg4 {[%emt 0:00:01]} Rfxf2 {[%emt 0:00:16]} 31. Rxg6 {[%emt 0:00:07]} 1-0

[Event "Serbian League 2024"]
[Site "Bajina Basta"]
[Date "2024.09.28"]
[Round "2.19"]
[White "Ivic, Velimir"]
[Black "Puranik, Abhimanyu"]
[Result "1/2-1/2"]
[ECO "D32"]
[WhiteElo "2599"]
[BlackElo "2639"]
[Annotator "TA"]
[PlyCount "59"]
[EventDate "2024.09.26"]
[EventType "team-tourn"]
[EventCountry "SRB"]
[SourceTitle "playchess.com"]
[Source "ChessBase"]
[SourceQuality "1"]
[TimeControl "40/5400+30:1800+30"]

{[%evp 23,59,42,49,43,53,33,61,41,54,50,42,46,48,41,44,47,43,35,37,32,52,39,43,39,31,37,40,28,33,25,41,15,32,27,21,0,22,9]} 1. c4 {[%emt 0:00:20]} e6 {[%emt 0:00:34]} 2. Nc3 {[%emt 0:00:24]} d5 {[%emt 0:00:28]} 3. d4 {[%emt 0:00:24]} c5 {[%emt 0:01:01]} 4. cxd5 {[%emt 0:06:07]} cxd4 {[%emt 0:00:20]} 5. Qa4+ {[%emt 0:00:57]} Bd7 {[%emt 0:00:35]} 6. Qxd4 {[%emt 0:00:06]} exd5 {[%emt 0:00:11]} 7. Qxd5 {[%emt 0:02:20]} Nf6 {[%emt 0:00:20]} 8. Qd1 {[%emt 0:00:48]} Bc5 {[%emt 0:01:38]} 9. Nf3 {[%emt 0:00:23]} Nc6 {[%emt 0:02:07]} 10. e3 {[%emt 0:00:42]} Qe7 {[%emt 0:00:44]} 11. Be2 {[%emt 0:00:46]} O-O {[%emt 0:00:32]} 12. O-O {[%emt 0:00:57]} Rfd8 {[%emt 0:01:22]} 13. Qb3 {[%emt 0:05:34]} a6 {[%emt 0:07:47]} 14. Bd2 {[%emt 0:06:46][%cal Oa1c1]} (14. Qxb7 $2 {loses.} Rdb8 15. Qc7 Bd6 $19) 14... Be6 {[%emt 0:16:20]} 15. Qc2 {[%emt 0:02:24] White is slightly better.} Nb4 {[%emt 0:03:48]} 16. Qb1 {[%emt 0:00:35]} Bg4 {[%emt 0:00:40] [#] Threatens to win with ...Bxf3.} 17. Rd1 {[%emt 0:20:43]} g6 {[%emt 0:00:22]} 18. e4 {[%emt 0:03:54] Dodges Bf5} Bxf3 {[%emt 0:01:09]} 19. Bxf3 {[%emt 0:00:42]} Nd3 {[%emt 0:00:13]} 20. Be3 {[%emt 0:02:19]} Bxe3 {[%emt 0:01:10]} 21. Rxd3 {[%emt 0:00:58]} Ba7 {[%emt 0:02:58]} 22. g3 {[%emt 0:10:23]} h5 {[%emt 0:04:33]} 23. Qc2 {[%emt 0:01:37]} Rxd3 {[%emt 0:00:27]} 24. Qxd3 {[%emt 0:00:05]} Rd8 {[%emt 0:00:07]} 25. Qe2 {[%emt 0:00:45]} Qe5 {[%emt 0:02:37]} 26. Rd1 {[%emt 0:05:31]} Rxd1+ {[%emt 0:01:16]} 27. Qxd1 {[%emt 0:00:22]} Bd4 {[%emt 0:02:14]} 28. Qd2 {[%emt 0:03:57]} b5 {[%emt 0:05:27]} 29. Kf1 {[%emt 0:09:17]} g5 {[%emt 0:19:35]} 30. h3 {[%emt 0:00:32] Weighted Error Value: White=0.04 (flawless) /Black=0.07 (flawless) .  Inaccurate:     	White=1     	Black=1      OK:         	White=8     	Black=9} 1/2-1/2

[Event "Serbian League 2024"]
[Site "Bajina Basta"]
[Date "2024.09.28"]
[Round "2.20"]
[White "Gagunashvili, Merab"]
[Black "Djukic, Nikola"]
[Result "1/2-1/2"]
[ECO "E35"]
[WhiteElo "2550"]
[BlackElo "2515"]
[Annotator "TA"]
[PlyCount "82"]
[EventDate "2024.09.26"]
[EventType "team-tourn"]
[EventCountry "SRB"]
[SourceTitle "playchess.com"]
[Source "ChessBase"]
[SourceQuality "1"]
[TimeControl "40/5400+30:1800+30"]

{[%evp 19,82,0,0,0,0,-6,24,17,31,0,14,10,22,11,11,14,25,25,25,22,37,48,58,50,41,40,50,55,59,0,0,0,0,0,0,0,0,0,0,0,10,0,3,0,8,8,14,14,17,0,12,12,12,0,0,0,0,0,0,0,0,0,0,0,0]} 1. d4 {[%emt 0:00:04]} Nf6 {[%emt 0:00:06]} 2. c4 {[%emt 0:00:04]} e6 {[%emt 0:00:07]} 3. Nc3 {[%emt 0:00:35]} Bb4 {[%emt 0:00:06]} 4. Qc2 {[%emt 0:00:22]} d5 {[%emt 0:00:08]} 5. cxd5 {[%emt 0:00:14]} exd5 {[%emt 0:00:07]} 6. Bg5 {[%emt 0:00:43]} h6 {[%emt 0:00:15]} 7. Bxf6 {[%emt 0:03:07]} Qxf6 {[%emt 0:00:09]} 8. a3 {[%emt 0:00:10]} Bxc3+ {[%emt 0:00:14]} 9. Qxc3 {[%emt 0:00:05]} O-O {[%emt 0:00:21]} 10. e3 {[%emt 0:00:07]} c6 {[%emt 0:00:46]} 11. Ne2 {[%emt 0:01:32]} Re8 {[%emt 0:06:42]} 12. Ng3 {[%emt 0:00:59]} Be6 {[%emt 0:05:58]} 13. Bd3 {[%emt 0:02:12] White has an edge.} Nd7 {[%emt 0:00:06]} 14. Rc1 {[%emt 0:07:38]} Qe7 {[%emt 0:08:29]} 15. O-O {[%emt 0:00:31]} Nf6 {[%emt 0:00:20]} 16. b4 {[%emt 0:06:43]} a6 {[%emt 0:00:19]} 17. a4 {[%emt 0:01:12][%cal Ba3a4,Ba4b5][%mdl 32]} h5 {[%emt 0:04:36][%cal Bh6h5,Bh5h4][%mdl 32]} 18. h3 {[%emt 0:04:56]} h4 {[%emt 0:10:26]} 19. Ne2 {[%emt 0:05:32]} Nh5 {[%emt 0:00:25]} 20. b5 {[%emt 0:07:13]} cxb5 {[%emt 0:18:33]} 21. axb5 {[%emt 0:00:16]} Qg5 {[%emt 0:00:28]} 22. Kh2 {[%emt 0:02:38]} (22. Kh1 {simplifies} Bf5 23. Bxf5 Qxf5 24. bxa6 bxa6 25. Qa5) 22... Bf5 {[%emt 0:02:47]} 23. Bxf5 {[%emt 0:16:11]} (23. bxa6 {simplifies} bxa6 24. Bxf5 Qxf5 25. Qa5) 23... Qxf5 {[%emt 0:01:43]} 24. Qc2 {[%emt 0:01:20]} (24. bxa6 $14 bxa6 25. Ng1) 24... Qxc2 $11 {[%emt 0:17:39] The position is equal.} 25. Rxc2 {[%emt 0:00:03]} Rec8 {[%emt 0:00:06]} 26. Rfc1 {[%emt 0:08:42]} Rxc2 {[%emt 0:00:12]} 27. Rxc2 {[%emt 0:00:04]} axb5 {[%emt 0:03:21][%mdl 4096] Endgame. KRN-KRN} 28. Rb2 {[%emt 0:04:37]} b4 {[%emt 0:00:11] Repels Nc3} 29. Nc1 {[%emt 0:13:03]} Nf6 {[%emt 0:04:53]} 30. Nd3 {[%emt 0:02:58]} Ra6 {[%emt 0:12:13]} 31. Rxb4 {[%emt 0:03:00]} Ra3 {[%emt 0:00:04]} 32. Ne5 {[%emt 0:05:47]} Ne4 {[%emt 0:00:56]} 33. Rxb7 {[%emt 0:00:53]} Nxf2 {[%emt 0:01:51]} 34. Rxf7 {[%emt 0:00:21]} Nd1 {[%emt 0:02:08]} 35. Rf3 {[%emt 0:02:26]} Rxe3 {[%emt 0:00:21]} 36. Ng6 {[%emt 0:01:15]} Re4 {[%emt 0:00:39]} 37. Rf4 {[%emt 0:00:42]} Rxf4 {[%emt 0:00:16]} 38. Nxf4 {[%emt 0:00:03]} Ne3 {[%emt 0:00:15]} 39. Kg1 {[%emt 0:00:23]} Kf7 {[%emt 0:00:39]} 40. Kf2 {[%emt 0:00:07]} Nf5 {[%emt 0:00:06]} 41. Nxd5 {[%emt 0:30:10]} Nxd4 {[%emt 0:30:06] Weighted Error Value: White=0.05 (flawless) /Black=0.06 (flawless) .  Mistake:       	White=1     	---        Inaccurate:     	White=1     	Black=1      OK:         	White=13    	Black=16} 1/2-1/2

[Event "Serbian League 2024"]
[Site "Bajina Basta"]
[Date "2024.09.28"]
[Round "2.21"]
[White "Nenezic, Marko"]
[Black "Draskovic, Luka"]
[Result "1/2-1/2"]
[ECO "E05"]
[WhiteElo "2492"]
[BlackElo "2497"]
[Annotator "TA"]
[PlyCount "79"]
[EventDate "2024.09.26"]
[EventType "team-tourn"]
[EventCountry "SRB"]
[SourceTitle "playchess.com"]
[Source "ChessBase"]
[SourceQuality "1"]
[TimeControl "40/5400+30:1800+30"]

{[%evp 22,79,29,41,53,41,91,89,85,70,75,57,94,116,100,97,113,132,121,96,111,76,109,37,122,59,63,74,94,92,56,84,175,165,157,185,190,155,169,183,219,228,235,223,387,171,176,175,161,34,48,0,0,0,0,0,0,0,47,0]} 1. Nf3 {[%emt 0:00:34]} d5 {[%emt 0:00:55]} 2. g3 {[%emt 0:00:32]} Nf6 {[%emt 0:00:28]} 3. Bg2 {[%emt 0:00:16]} e6 {[%emt 0:00:34]} 4. O-O {[%emt 0:00:24]} Be7 {[%emt 0:00:22]} 5. d4 {[%emt 0:01:06]} O-O {[%emt 0:01:05]} 6. c4 {[%emt 0:00:47]} dxc4 {[%emt 0:00:08]} 7. Qa4 {[%emt 0:01:29]} a6 {[%emt 0:06:06]} 8. Qxc4 {[%emt 0:00:20]} b5 {[%emt 0:00:05]} 9. Qc2 {[%emt 0:00:05]} Bb7 {[%emt 0:00:03]} 10. Bf4 {[%emt 0:01:50]} Nd5 {[%emt 0:19:45]} 11. Nc3 {[%emt 0:00:46]} Nxf4 {[%emt 0:05:39]} 12. gxf4 {[%emt 0:00:06]} Ra7 {[%emt 0:02:22] E05: Open Catalaans: 5 Pf3 Le7.} 13. Rfd1 {[%emt 0:07:09][%cal Od4d5]} {Zwart kan beter} Bxf3 {[%emt 0:14:30] Fout (0.5)} (13... Nd7 $14) 14. Bxf3 $16 {[%emt 0:00:09]} c6 $146 {[%emt 0:00:01] OK. Wit staat beter.} ({Predecessor:} 14... Bd6 15. e3 Qh4 16. Ne4 Nd7 17. a4 b4 18. a5 Nf6 19. Nxf6+ Qxf6 20. Kh1 g6 {1-0 Odendahl,S (2370)-Sharif,M Lloyds Bank op-03 1979 (8)}) 15. e3 {[%emt 0:01:56]} Qb6 {[%emt 0:03:29]} 16. a4 {[%emt 0:22:27] OK} Rc7 {[%emt 0:01:01] Onnauwkeurig} 17. f5 {[%emt 0:06:12] OK} exf5 {[%emt 0:04:54] OK} 18. Qxf5 {[%emt 0:02:42]} Bb4 {[%emt 0:06:41]} 19. Ne4 {[%emt 0:03:34] Ng5 zou dodelijk zijn.} Nd7 {[%emt 0:06:30]} 20. Kh1 {[%emt 0:08:14]} Be7 {[%emt 0:03:11]} 21. Rg1 {[%emt 0:07:43][%cal Og1g7] [#] Met het idee Rxg7+! en mat. Onnauwkeurig} g6 {[%emt 0:01:35] OK} {Wit kan beter} 22. Qf4 {[%emt 0:02:33] Fout (0.7)} (22. b3 $16) {Zwart heeft baat bij} 22... Rcc8 {[%emt 0:04:09] Fout (0.8)} (22... bxa4 $14 23. Rxa4 a5) {Wit heeft voordeel bij} 23. Nd6 {[%emt 0:10:58] Fout (0.6)} (23. Rg3 $16) 23... Bxd6 $14 {[%emt 0:08:30] Beste (Gemakkelijk)} 24. Qxd6 {[%emt 0:00:05]} Rfd8 {[%emt 0:00:04][%cal Bf8d8,Bd8d6,Bd6f6][%mdl 32] EV=22.30. Goes to f5 (dbg)). OK} 25. a5 {[%emt 0:01:40] Wit is veel actiever.} Qa7 {[%emt 0:00:14] OK} 26. b4 {[%emt 0:10:29][%cal Oa1c1] Dreigt te winnen met Rac1! OK} (26. Bxc6 $2 {vergaat.} Nb8 $19) 26... Nf8 {[%emt 0:00:22] is de moeite waard. Fout (0.9)} (26... Kg7 $16) 27. Qf6 $36 {[%emt 0:00:44][%cal Oa1c1][%mdl 2048] Wit is actief. OK} Qc7 {[%emt 0:01:34]} 28. Rac1 {[%emt 0:00:47][%cal Rc1c6] OK} Rd6 {[%emt 0:00:20]} 29. Qh4 {[%emt 0:01:59]} Nd7 {[%emt 0:01:22]} 30. Rc2 {[%emt 0:01:23]} Rf6 {[%emt 0:02:34]} 31. Bg4 {[%emt 0:02:44] [#] En nu zou Bxd7 winnen. OK} Kg7 {[%emt 0:00:06] OK} 32. Qg3 {[%emt 0:00:30] OK} Qd8 $2 {[%emt 0:00:27] is een verstandige keuze. Fout (1.6)} (32... Qxg3 33. hxg3 Rd8) 33. Rgc1 {[%emt 0:00:47] Fout (2.2)} (33. e4 $142) 33... Qe7 {[%emt 0:01:27] Beste} 34. Kg1 {[%emt 0:02:00]} Rd6 {[%emt 0:01:12]} {Wit verdient de voorkeur} 35. Bh3 {[%emt 0:00:59] Fout (1.3)} (35. h3 $18) 35... Rd5 $1 $14 {[%emt 0:02:12][%cal Od5g5] Hoopt vervolgens op ...Rg5! Sterk} 36. Bg2 {[%emt 0:00:37] is prominenter. Fout (0.5)} (36. Rxc6 $2 {verliest.} Rxc6 37. Rxc6 Rg5 $19) (36. Bxd7 $1 $14 Qxd7 37. h3) 36... Rg5 $11 {[%emt 0:00:27] Beste (Gemakkelijk)} 37. Qf4 {[%emt 0:00:09][%cal Rc2c6] is de betere keuze. OK} Rf5 $1 {[%emt 0:00:23] Sterk} 38. Qg3 {[%emt 0:01:39] heeft de voorkeur. Zwart moet nu e4 voorkomen.} Rg5 {[%emt 0:00:01] OK} 39. Qf4 {[%emt 0:00:30] Fout (0.0)} (39. Qh3 $11) 39... Rf5 $1 $14 {[%emt 0:00:02] Sterk} 40. Qg3 {[%emt 0:00:32] Blunder waarde: Wit=0.28 (precies) /Zwart=0.18 (erg precies) . Fout (0.5).  Fout:        	Wit=7      	Zwart=4      Onnauwkeurig:    	Wit=1      	Zwart=1      OK:         	Wit=8      	Zwart=7      Beste:        	---       	Zwart=3      Sterk:        	---       	Zwart=3} (40. Qe4 $14 Qxb4 41. Bh3 (41. Rxc6 Nf6 $17) 41... Rg5+ 42. Kf1) 1/2-1/2

[Event "Serbian League 2024"]
[Site "Bajina Basta"]
[Date "2024.09.28"]
[Round "2.22"]
[White "Bryakin, Mikhail"]
[Black "Perunovic, Miodrag"]
[Result "1-0"]
[ECO "D00"]
[WhiteElo "2438"]
[BlackElo "2347"]
[Annotator "ChessBase"]
[PlyCount "121"]
[EventDate "2024.09.26"]
[EventType "team-tourn"]
[EventCountry "SRB"]
[SourceTitle "playchess.com"]
[Source "ChessBase"]
[SourceQuality "1"]
[TimeControl "40/5400+30:1800+30"]

1. d4 {[%emt 0:00:04]} Nf6 {[%emt 0:00:39]} 2. Bg5 {[%emt 0:00:12]} d5 {[%emt 0:05:17]} 3. e3 {[%emt 0:00:33]} c5 {[%emt 0:01:55]} 4. c3 {[%emt 0:00:16]} Qb6 {[%emt 0:02:07]} 5. Qc2 {[%emt 0:00:23]} Ne4 {[%emt 0:03:47]} 6. Bf4 {[%emt 0:00:42]} Bf5 {[%emt 0:00:46]} 7. dxc5 {[%emt 0:00:09]} Qxc5 {[%emt 0:00:41]} 8. Qb3 {[%emt 0:00:07]} Bc8 {[%emt 0:07:12]} 9. Bxb8 {[%emt 0:01:58]} Rxb8 {[%emt 0:00:01]} 10. Bb5+ {[%emt 0:00:19]} Kd8 {[%emt 0:02:25]} 11. Nf3 {[%emt 0:00:37]} e6 {[%emt 0:07:06]} 12. O-O {[%emt 0:03:06]} Bd6 {[%emt 0:00:30]} 13. Rd1 {[%emt 0:01:21]} Ke7 {[%emt 0:00:25]} 14. Nbd2 {[%emt 0:01:12]} Nxd2 {[%emt 0:08:47]} 15. Rxd2 {[%emt 0:01:13]} Rd8 {[%emt 0:00:15]} 16. Qa4 {[%emt 0:04:42]} h6 {[%emt 0:02:45]} 17. Rad1 {[%emt 0:22:02]} a6 {[%emt 0:04:46]} 18. Qh4+ {[%emt 0:01:46]} f6 {[%emt 0:02:19]} 19. Bf1 {[%emt 0:10:05]} b5 {[%emt 0:17:39]} 20. Qh5 {[%emt 0:06:55]} f5 {[%emt 0:06:05]} 21. g4 {[%emt 0:07:47]} Rf8 {[%emt 0:02:32]} 22. Nh4 {[%emt 0:02:28]} Rf6 {[%emt 0:04:54]} 23. gxf5 {[%emt 0:01:56]} Qc7 {[%emt 0:04:53]} 24. Ng6+ {[%emt 0:11:33]} Kd8 {[%emt 0:03:05]} 25. e4 {[%emt 0:02:26]} Qf7 {[%emt 0:03:58]} 26. Bg2 {[%emt 0:05:31]} Kc7 {[%emt 0:01:28]} 27. Qh4 {[%emt 0:09:05]} exf5 {[%emt 0:01:05]} 28. e5 {[%emt 0:00:18]} Rxg6 {[%emt 0:00:16]} 29. exd6+ {[%emt 0:00:13]} Rxd6 {[%emt 0:02:41]} 30. Rxd5 {[%emt 0:00:34]} Rbb6 {[%emt 0:00:44]} 31. Qf4 {[%emt 0:04:59]} Qf6 {[%emt 0:01:52]} 32. Kf1 {[%emt 0:00:52]} g5 {[%emt 0:00:53]} 33. Qe3 {[%emt 0:00:30]} f4 {[%emt 0:01:10]} 34. Qe8 {[%emt 0:01:02]} f3 {[%emt 0:00:34]} 35. Rc5+ {[%emt 0:00:23]} Rbc6 {[%emt 0:00:56]} 36. Rxc6+ {[%emt 0:00:26]} Rxc6 {[%emt 0:00:01]} 37. Bh1 {[%emt 0:00:20]} Bh3+ {[%emt 0:01:34]} 38. Kg1 {[%emt 0:00:01]} Qf5 {[%emt 0:00:46]} 39. Qe7+ {[%emt 0:00:34]} Kb8 {[%emt 0:00:37]} 40. Qd8+ {[%emt 0:01:04]} Ka7 {[%emt 0:00:29]} 41. Qd4+ {[%emt 0:04:59]} Kb8 {[%emt 0:00:13]} 42. Rd3 {[%emt 0:06:03]} g4 {[%emt 0:04:20]} 43. Rd1 {[%emt 0:04:08]} Qe6 {[%emt 0:03:13]} 44. a4 {[%emt 0:05:11]} bxa4 {[%emt 0:00:53]} 45. Qxa4 {[%emt 0:00:59]} Kc8 {[%emt 0:07:10]} 46. Qd4 {[%emt 0:00:45]} Kb8 {[%emt 0:00:07]} 47. Qb4+ {[%emt 0:02:06]} Kc8 {[%emt 0:00:04]} 48. b3 {[%emt 0:00:46]} Qe2 {[%emt 0:02:47]} 49. Qd4 {[%emt 0:01:59]} Qe7 {[%emt 0:04:36]} 50. c4 {[%emt 0:03:00]} Re6 {[%emt 0:00:31]} 51. Qd2 {[%emt 0:00:30]} h5 {[%emt 0:01:28]} 52. c5 {[%emt 0:00:35]} h4 {[%emt 0:00:46]} 53. Qc3 {[%emt 0:01:01]} Qf6 {[%emt 0:00:40]} 54. Qb4 {[%emt 0:02:07]} Qb2 {[%emt 0:02:23]} 55. Qf4 {[%emt 0:02:58]} Qe2 {[%emt 0:03:09]} 56. Qf8+ {[%emt 0:00:09]} Re8 {[%emt 0:00:03]} 57. Qf5+ {[%emt 0:00:05]} Kb8 {[%emt 0:01:38]} 58. Qf4+ {[%emt 0:00:38]} Ka8 {[%emt 0:00:12]} 59. Qc1 {[%emt 0:00:41]} Qxf2+ {[%emt 0:00:13]} 60. Kxf2 {[%emt 0:00:05]} Re2+ {[%emt 0:00:01]} 61. Kg1 {[%emt 0:00:01]} 1-0

[Event "Serbian League 2024"]
[Site "Bajina Basta"]
[Date "2024.09.28"]
[Round "2.23"]
[White "Radovanovic, Dusan"]
[Black "Radovanovic, Mihajlo"]
[Result "0-1"]
[ECO "B07"]
[WhiteElo "2293"]
[BlackElo "2426"]
[Annotator "ChessBase"]
[PlyCount "88"]
[EventDate "2024.09.26"]
[EventType "team-tourn"]
[EventCountry "SRB"]
[SourceTitle "playchess.com"]
[Source "ChessBase"]
[SourceQuality "1"]
[TimeControl "40/5400+30:1800+30"]

1. e4 {[%emt 0:00:51]} g6 {[%emt 0:00:10]} 2. d4 {[%emt 0:00:22]} Bg7 {[%emt 0:00:10]} 3. Nc3 {[%emt 0:00:25]} d6 {[%emt 0:00:09]} 4. Be3 {[%emt 0:02:16]} a6 {[%emt 0:00:42]} 5. h4 {[%emt 0:00:32]} Nf6 {[%emt 0:01:35]} 6. f3 {[%emt 0:00:16]} b5 {[%emt 0:01:20]} 7. Qd2 {[%emt 0:02:58]} Nbd7 {[%emt 0:15:51]} 8. O-O-O {[%emt 0:13:54]} h6 {[%emt 0:05:36]} 9. g4 {[%emt 0:14:13]} Nb6 {[%emt 0:00:08]} 10. Bd3 {[%emt 0:07:15]} b4 {[%emt 0:07:18]} 11. Nce2 {[%emt 0:00:13]} a5 {[%emt 0:00:04]} 12. Nh3 {[%emt 0:01:56]} h5 {[%emt 0:05:22]} 13. g5 {[%emt 0:03:06]} Nfd7 {[%emt 0:01:22]} 14. f4 {[%emt 0:00:50]} c5 {[%emt 0:05:22]} 15. dxc5 {[%emt 0:48:53]} Na4 {[%emt 0:02:56]} 16. Bd4 {[%emt 0:00:00]} Bxd4 {[%emt 0:02:45]} 17. Nxd4 {[%emt 0:00:00]} Naxc5 {[%emt 0:01:11]} 18. f5 {[%emt 0:00:00]} Ne5 {[%emt 0:07:42]} 19. Nf4 {[%emt 0:00:00]} O-O {[%emt 0:02:17]} 20. Qe2 {[%emt 0:00:00]} Ncxd3+ {[%emt 0:02:24]} 21. cxd3 {[%emt 0:00:00]} Qb6 {[%emt 0:00:30]} 22. Nf3 {[%emt 0:00:00]} b3 {[%emt 0:00:20]} 23. Kb1 {[%emt 0:00:00]} bxa2+ {[%emt 0:00:25]} 24. Ka1 {[%emt 0:00:00]} Nxf3 {[%emt 0:12:30]} 25. Qxf3 {[%emt 0:00:00]} a4 {[%emt 0:00:05]} 26. Nd5 {[%emt 0:00:00]} Qb7 {[%emt 0:02:16]} 27. Rhf1 {[%emt 0:01:26]} Rb8 {[%emt 0:01:06]} 28. Rd2 {[%emt 0:02:59]} Be6 {[%emt 0:00:39]} 29. fxe6 {[%emt 0:00:53]} fxe6 {[%emt 0:00:01]} 30. Nf6+ {[%emt 0:00:17]} exf6 {[%emt 0:00:14]} 31. gxf6 {[%emt 0:00:09]} a3 {[%emt 0:00:02]} 32. Qg2 {[%emt 0:00:32]} Kf7 {[%emt 0:03:54]} 33. Rc1 {[%emt 0:02:12]} axb2+ {[%emt 0:00:40]} 34. Rxb2 {[%emt 0:00:02]} Qxb2+ {[%emt 0:00:07]} 35. Qxb2 {[%emt 0:00:05]} Rxb2 {[%emt 0:00:04]} 36. Kxb2 {[%emt 0:00:20]} Ra8 {[%emt 0:00:05]} 37. Ka1 {[%emt 0:00:35]} Kxf6 {[%emt 0:00:06]} 38. Rf1+ {[%emt 0:00:43]} Kg7 {[%emt 0:01:51]} 39. d4 {[%emt 0:01:14]} Ra4 {[%emt 0:00:26]} 40. Rd1 {[%emt 0:00:08]} g5 {[%emt 0:01:12]} 41. hxg5 {[%emt 0:04:28]} Kg6 {[%emt 0:02:42]} 42. e5 {[%emt 0:01:56]} dxe5 {[%emt 0:00:31]} 43. dxe5 {[%emt 0:00:02]} Kxg5 {[%emt 0:00:35]} 44. Rd8 {[%emt 0:00:30]} h4 {[%emt 0:00:30]} 0-1

[Event "Serbian League 2024"]
[Site "Bajina Basta"]
[Date "2024.09.28"]
[Round "2.24"]
[White "Lukovic, Vladimir"]
[Black "Marcetic, Nikola"]
[Result "1-0"]
[ECO "B27"]
[WhiteElo "2431"]
[BlackElo "2290"]
[Annotator "ChessBase"]
[PlyCount "93"]
[EventDate "2024.09.26"]
[EventType "team-tourn"]
[EventCountry "SRB"]
[SourceTitle "playchess.com"]
[Source "ChessBase"]
[SourceQuality "1"]
[TimeControl "40/5400+30:1800+30"]

1. e4 {[%emt 0:00:10]} c5 {[%emt 0:00:07]} 2. Nf3 {[%emt 0:00:17]} g6 {[%emt 0:00:15]} 3. Bc4 {[%emt 0:00:52]} Bg7 {[%emt 0:04:04]} 4. O-O {[%emt 0:00:26]} Nc6 {[%emt 0:00:47]} 5. c3 {[%emt 0:00:49]} a6 {[%emt 0:07:07]} 6. d4 {[%emt 0:07:11]} b5 {[%emt 0:07:00]} 7. Be2 {[%emt 0:03:08]} cxd4 {[%emt 0:27:00]} 8. cxd4 {[%emt 0:01:24]} d6 {[%emt 0:03:45]} 9. h3 {[%emt 0:01:26]} Nf6 {[%emt 0:04:50]} 10. Be3 {[%emt 0:11:27]} O-O {[%emt 0:04:09]} 11. d5 {[%emt 0:21:59]} Ne5 {[%emt 0:05:58]} 12. Nxe5 {[%emt 0:05:16]} dxe5 {[%emt 0:00:01]} 13. Qd3 {[%emt 0:00:57]} Ne8 {[%emt 0:04:20]} 14. a4 {[%emt 0:08:38]} Bd7 {[%emt 0:03:42]} 15. Bc5 {[%emt 0:01:46]} bxa4 {[%emt 0:02:15]} 16. Qa3 {[%emt 0:07:39]} Nd6 {[%emt 0:00:13]} 17. Nc3 {[%emt 0:00:19]} Re8 {[%emt 0:01:49]} 18. Bxd6 {[%emt 0:04:00]} exd6 {[%emt 0:00:07]} 19. Nxa4 {[%emt 0:00:55]} Bxa4 {[%emt 0:05:37]} 20. Qxa4 {[%emt 0:00:06]} Qb6 {[%emt 0:01:02]} 21. Rfb1 {[%emt 0:04:35]} f5 {[%emt 0:07:47]} 22. Qc6 {[%emt 0:04:13]} Qd4 {[%emt 0:01:40]} 23. exf5 {[%emt 0:01:43]} Rf8 {[%emt 0:00:33]} 24. Ra4 {[%emt 0:03:50]} Qd2 {[%emt 0:00:26]} 25. Bxa6 {[%emt 0:00:13]} Rad8 {[%emt 0:02:03]} 26. Qc1 {[%emt 0:02:48]} Qxc1+ {[%emt 0:01:01]} 27. Rxc1 {[%emt 0:00:01]} gxf5 {[%emt 0:00:07]} 28. Rac4 {[%emt 0:00:38]} e4 {[%emt 0:01:14]} 29. b4 {[%emt 0:00:17]} Bh6 {[%emt 0:02:03]} 30. R1c2 {[%emt 0:00:57]} Rde8 {[%emt 0:01:12]} 31. Bc8 {[%emt 0:01:59]} e3 {[%emt 0:00:22]} 32. Be6+ {[%emt 0:00:49]} Kg7 {[%emt 0:00:19]} 33. b5 {[%emt 0:03:32]} Ra8 {[%emt 0:00:47]} 34. b6 {[%emt 0:01:52]} Ra1+ {[%emt 0:00:20]} 35. Kh2 {[%emt 0:00:02]} Rb1 {[%emt 0:02:12]} 36. Rc7+ {[%emt 0:00:10]} Kg6 {[%emt 0:00:06]} 37. b7 {[%emt 0:00:10]} Bf4+ {[%emt 0:01:15]} 38. g3 {[%emt 0:00:09]} exf2 {[%emt 0:00:56]} 39. Rxf2 {[%emt 0:00:03]} Be3 {[%emt 0:00:18]} 40. Re2 {[%emt 0:01:05]} f4 {[%emt 0:00:51]} 41. gxf4 {[%emt 0:31:04]} Bxf4+ {[%emt 0:30:49]} 42. Kg2 {[%emt 0:00:07]} Rf6 {[%emt 0:00:24]} 43. Bd7 {[%emt 0:00:00]} Be5 {[%emt 0:00:00]} 44. Rf2 {[%emt 0:00:00]} Kg5 {[%emt 0:00:00]} 45. Rxf6 {[%emt 0:00:00]} Bxf6 {[%emt 0:00:00]} 46. Kf3 {[%emt 0:00:00]} Bd8 {[%emt 0:00:00]} 47. Rc8 {[%emt 0:00:00]} 1-0